Cogmind - Beta 16 @@@ ROGUE MODE // 2025.10.31 @ 06:13:10 Player: beans Result: Destroyed by VA-RNR(R) with Subdweller Machine Gun Performance ------------- Evolutions (0) 0 Regions Visited (2) 400 Robots Destroyed (13) 65 Value Destroyed (387) 387 Prototype IDs (12) 240 Alien Tech Used (0) 0 Bonus (-16) -16 TOTAL SCORE: 1076 Bonus ------- Friendly Fire -16 Cogmind --------- Core Integrity 0/250 Matter 34/300 Energy 100/100 System Corruption 0% Temperature Cool (0) Movement Core (50) Location -10/Subcaves Parts ------- > --- POWER (1) -------- (None) > --- PROPULSION (2) --- (None) > --- UTILITY (2) ------ (None) > --- WEAPON (2) ------- Dirty Datajack > --- INVENTORY (5) ---- Aluminum Leg Subdweller Machine Gun Grenade Launcher Peak State ------------ > --- POWER ------------ (None) > --- PROPULSION ------- (None) > --- UTILITY ---------- (None) > --- WEAPON ----------- Subdweller Laser Dirty Datajack > --- INVENTORY -------- Aluminum Leg Subdweller Machine Gun Grenade Launcher [Rating: 8] Favorites ----------- Power None Propulsion Aluminum Leg Leg Aluminum Leg Utility None Weapon Assault Rifle Energy Gun Subdweller Laser Ballistic Gun Assault Rifle Ballistic Cannon Light Cannon Launcher Grenade Launcher Special Melee Weapon Dirty Datajack Build | -11 -10 -10 ------- Run | Yrd Mat Sub Slots Evolved . | . . . Power . | . . . Propulsion . | . . . Utility . | . . . Weapon . | . . . Parts Attached 10 | 4 3 3 Power . | . . . Engine . | . . . Core . | . . . Reactor . | . . . Propulsion 2 | 2 . . Treads . | . . . Leg 2 | 2 . . Wheel . | . . . Hover . | . . . Flight . | . . . Utility . | . . . Device . | . . . Storage . | . . . Processor . | . . . Hackware . | . . . Protection . | . . . Artifact . | . . . Weapon 8 | 2 3 3 Energy Gun 1 | . . 1 Energy Cannon . | . . . Ballistic Gun 3 | 2 . 1 Ballistic Cannon 1 | . 1 . Launcher 2 | . 2 . Special Weapon . | . . . Impact Weapon . | . . . Slashing Weapon . | . . . Piercing Weapon . | . . . Special Melee Weapon 1 | . . 1 Unidentified Prototypes . | . . . Parts Lost 5 | . 1 4 Power . | . . . Propulsion 1 | . 1 . Utility . | . . . Weapon 4 | . . 4 Highest Loss Streak 4 | . 1 4 To Critical Strikes . | . . . Average Backups 2 | . 2 2 Power . | . . . Propulsion . | . . . Utility . | . . . Weapon 1 | . 2 1 Tool/Special . | . . . Unused Backups . | . . . Power . | . . . Propulsion . | . . . Utility . | . . . Weapon . | . . . Tool/Special . | . . . Average Slot Usage (%) 33 | . 54 23 Leg 12 | . 25 6 Energy Gun 1 | . . 2 Ballistic Gun 7 | . 13 4 Ballistic Cannon 4 | . 5 4 Launcher 4 | . 10 1 Special Melee Weapon 1 | . . 2 Peak Build Rating 8 | 4 4 8 Average Rating 3 | 2 3 2 On Entrance 2 | . 4 3 Avg Prop Armor Cover (%) . | . . . Naked Turns 156 | . . 156 Heaviest Build 8 | 4 6 8 Greatest Support 20 | 20 20 10 Greatest Overweight (x) 2 | 1 . 2 Average Overweight (x) . | . . . Largest Inventory Capacity 5 | 5 5 5 Average Capacity 5 | 5 5 5 Most Carried 4 | 2 4 4 Average Carried 2 | . 2 2 Final Capacity 5 | 5 5 5 Final Carried 3 | . 3 3 Class Distribution -------------------- 100% | Mutant Dominant Class ---------------- Mutant | -10/Materials Mutant | -10/Subcaves Resources | -11 -10 -10 ----------- Run | Yrd Mat Sub Matter Collected 433 | 224 110 99 Remotely . | . . . Salvage Created 257 | . 201 56 Parts 23 | . 18 5 Haulers Intercepted . | . . . Recyclers Shooed 1 | . 1 . Parts Field Recycled . | . . . Retrieved Matter . | . . . Parts Self-Destructed 5 | . . 5 Prevented . | . . . Parts Restored . | . . . Kills | -11 -10 -10 ------- Run | Yrd Mat Sub Combat Hostiles Destroyed 9 | . 6 3 Guns 3 | . 2 1 Cannons 1 | . . 1 AOE 5 | . 4 1 Classes Destroyed 6 | . 5 1 Worker 1 | . 1 . Tunneler 1 | . 1 . Recycler 1 | . 1 . Watcher 1 | . 1 . Grunt 6 | . 6 . Subdweller 3 | . . 3 Best Kill Streak 6 | . 6 1 Combat Bots Only 4 | . 4 1 Max Kills in Single Turn 2 | . 2 1 Gunslinging . | . . . Exploded 1 | . 1 1 Melee . | . . . Uniques/NPCs Destroyed . | . . . Combat | -11 -10 -10 -------- Run | Yrd Mat Sub Hostile Shots Fired 67 | . 30 37 Missed 26 | . 9 17 Hits 41 | . 21 20 Projectile 41 | . 21 20 Damage Taken 838 | . 302 536 Core 263 | . 40 223 Absorbed by Shields . | . . . Core Remaining (%) 100 | 100 . . Volleys Fired 49 | . 22 27 Largest 2 | . 2 2 Hottest 60 | . 60 60 Shots Fired 80 | . 42 38 Gun 33 | . 14 19 Cannon 29 | . 14 15 Launcher 18 | . 14 4 Special . | . . . Kinetic 55 | . 28 27 Thermal 7 | . . 7 Explosive 18 | . 14 4 Electromagnetic . | . . . Robot Hit Streak 10 | . 5 10 Robot Miss Streak 4 | . 4 1 Penetration Max . | . . . Secondary Targets . | . . . Shots Hit Robots 43 | . 18 25 Core Hits 24 | . 17 7 Critical Kills . | . . . Critical Parts Destroyed . | . . . Critical Strikes 1 | . . 1 Blast 1 | . . 1 Melee Attacks 1 | . . 1 Impact . | . . . Slashing . | . . . Piercing 1 | . . 1 Sneak Attacks . | . . . Combat Hostiles . | . . . Follow-up Attacks . | . . . Damage Inflicted 1212 | . 707 505 Guns 252 | . 117 135 Cannons 270 | . 115 155 Explosions 690 | . 475 215 Melee . | . . . Ramming . | . . . Kinetic 480 | . 232 248 Thermal 42 | . . 42 Explosive 690 | . 475 215 Electromagnetic . | . . . Impact . | . . . Slashing . | . . . Piercing . | . . . Highest Corruption . | . . . Average Corruption . | . . . Corruption Purged . | . . . Corruption Blocked . | . . . Overload Shots . | . . . Overflow Damage 20 | . 5 15 Projectiles . | . . . Explosions 20 | . 5 15 Melee . | . . . Knockbacks 3 | . 1 2 Impact . | . . . Kinetic 3 | . 1 2 Secondary . | . . . Self-Inflicted Damage 127 | . 70 57 Shots 4 | . 2 2 Rammed . | . . . Targets Rammed . | . . . Kicked . | . . . Crushed . | . . . Highest Temperature 4 | . 4 . Average Temperature 3 | . 3 . Received Heat Transfer 234 | . 132 102 Siege Activations . | . . . Martial Activations . | . . . Shielding Activations . | . . . Robots Disrupted . | . . . Combat Hostiles . | . . . Robots Corrupted . | . . . Combat Hostiles . | . . . Parts Fried . | . . . Impact Corruptions . | . . . Robots Melted . | . . . Combat Hostiles . | . . . Parts Melted . | . . . Heat Transferred 50 | . . 50 Parts Sabotaged . | . . . Parts Stolen . | . . . Parts Stripped . | . . . Power Chain Reactions . | . . . Alert | -11 -10 -10 ------- Run | Yrd Mat Sub Maximum Alert Level . | . . . Low Security (%) 100 | 100 100 . Level 1 . | . . . Level 2 . | . . . Level 3 . | . . . Level 4 . | . . . Level 5 . | . . . High Security . | . . . Max Security . | . . . Peak Influence 166 | . 166 . Initial . | . . . Average 84 | . 98 . Influence Increases 246 | . 246 . Destroy 0b10 Robot/C 120 | . 120 . Destroy 0b10 Robot/NC 20 | . 20 . Destroy Leader 32 | . 32 . Disable Machine 30 | . 30 . Destroy Structure 44 | . 44 . Influence Decreases 246 | . 110 136 Entered New Map 66 | . . 66 Time Decay 170 | . 100 70 Lost Part 10 | . 10 . Squads Dispatched 3 | . 3 . Investigation 1 | . 1 . Extermination . | . . . Reinforcement 2 | . 2 . Assault . | . . . Garrison . | . . . Intercept . | . . . Searches Triggered . | . . . Construction Impeded . | . . . Haulers Reinforced . | . . . Active Scanning Responses . | . . . Cargo Convoy Interrupts . | . . . Stealth | -11 -10 -10 --------- Run | Yrd Mat Sub Distress Signals 1 | . 1 . Communications Jammed . | . . . Distress Signals . | . . . Times Spotted 17 | . 11 6 Peak Tracking Total 5 | . 5 2 Tactical Retreats 1 | . . 1 Traps | -11 -10 -10 ------- Run | Yrd Mat Sub Traps Triggered 2 | . 1 1 Indirectly . | . . . Trap Hack Attempts . | . . . Triggered . | . . . Disarmed . | . . . Reprogrammed . | . . . Reused . | . . . Traps Extracted . | . . . Installed . | . . . Triggered . | . . . Machines | -11 -10 -10 ---------- Run | Yrd Mat Sub Machines Disabled 2 | . 2 . Max in Single Turn 1 | . 1 . Machines Repaired . | . . . Machines Dismantled . | . . . Machines Sabotaged . | . . . Overloaded Fab Kills . | . . . Hacking | -11 -10 -10 --------- Run | Yrd Mat Sub Machines Accessed 1 | . . 1 Terminals . | . . . Fabricators . | . . . Repair Stations . | . . . Recycling Units . | . . . Scanalyzers . | . . . Garrison Access . | . . . Total Hacks 9 | . . 9 Successful 9 | . . 9 Failed . | . . . Catastrophic . | . . . Database Lockouts . | . . . Manual . | . . . Terminals . | . . . Fabricators . | . . . Repair Stations . | . . . Recycling Units . | . . . Scanalyzers . | . . . Garrison Access . | . . . Terminal Hacks 9 | . . 9 Record 8 | . . 8 Proto ID Catalog 1 | . . 1 Fabricator Hacks . | . . . Repair Station Hacks . | . . . Recycling Unit Hacks . | . . . Scanalyzer . | . . . Garrison Access Hacks . | . . . Unauthorized Hacks . | . . . Terminals . | . . . Fabricators . | . . . Repair Stations . | . . . Recycling Units . | . . . Scanalyzers . | . . . Garrison Access . | . . . Data Cores Recovered . | . . . Used . | . . . Hacking Detections . | . . . Full Trace Events . | . . . Feedback Events . | . . . Feedback Blocked . | . . . Robot Schematics Acquired . | . . . Robots Built . | . . . Authchips . | . . . Time . | . . . Total Robot Build Rating . | . . . Part Schematics Acquired . | . . . Parts Built . | . . . Authchips . | . . . Time . | . . . Total Part Build Rating . | . . . Part Studies Acquired . | . . . Parts Repaired . | . . . Time . | . . . Parts Recycled . | . . . Recycled Matter . | . . . Retrieved Matter . | . . . Retrieved Components . | . . . Parts Scanalyzed . | . . . Part Schematics Acquired . | . . . Parts Damaged . | . . . Bothacking | -11 -10 -10 ------------ Run | Yrd Mat Sub Used RIF Installer . | . . . Robots Hacked . | . . . Non-combat . | . . . Combat . | . . . Robot Hacks Applied . | . . . Relay Couplers Released . | . . . Fabnet Peak Effective % . | . . . Robots Rewired . | . . . Allies Hacked . | . . . Hacks Repelled . | . . . Allies | -11 -10 -10 -------- Run | Yrd Mat Sub Total Allies . | . . . Largest Group . | . . . Highest-Rated Group . | . . . Highest-Rated Ally . | . . . Total Orders . | . . . Ally Attacks . | . . . Total Damage . | . . . Kills . | . . . Allies Corrupted . | . . . Allies Melted . | . . . Intel | -11 -10 -10 ------- Run | Yrd Mat Sub Active Infowar (turns) . | . . . Robot Analysis Total . | . . . Derelict Logs Recovered . | . . . Drone Launches . | . . . Drone Recoveries . | . . . Exploration | -11 -10 -10 ------------- Run | Yrd Mat Sub Turns Passed 933 | 48 280 605 Spaces Moved 741 | 40 167 534 Core 392 | 15 . 377 Treads . | . . . Legs 349 | 25 167 157 Wheels . | . . . Hover . | . . . Flight . | . . . Fastest Speed 50 | 50 120 50 Average Speed 88 | 102 120 77 Slowest Speed 150 | 120 120 150 Overloaded Moves . | . . . Propulsion Burnouts . | . . . Robots Hopped . | . . . Potential Cave-ins . | . . . Cave-ins Triggered . | . . . Exploration Rate (%) 31 | 4 54 37 Regions Visited 2 Branch Regions 1 Pre-discovered Areas . | . . . Known Exits Taken . | . . . Unknown Exits Taken 2 | 1 1 . Scrap Searched . | . . . Spaces Dug 7 | . 7 . Terrain Destroyed 64 | . 46 18 Melee . | . . . Projectile . | . . . AOE 64 | . 46 18 Terrain Rammed . | . . . Walls Destroyed . | . . . Machines Disabled . | . . . Actions | -11 -10 -10 --------- Run | Yrd Mat Sub Total 935 | 47 203 685 Wait 117 | . 6 111 Move 739 | 39 166 534 Hop . | . . . Pick Up 10 | 4 3 3 Fast Attach . | . . . Attach 10 | 4 1 5 Detach 3 | . 1 2 Swap 5 | . 4 1 Drop 1 | . . 1 Fire 49 | . 22 27 Melee 1 | . . 1 Ram . | . . . Kick . | . . . Crush . | . . . Escape Stasis . | . . . Rewire . | . . . Trap . | . . . Miscellaneous . | . . . Route ------- -11/Scrapyard -10/Materials (discovered 2 exits: [*Mat] / *Sub) -10/Subcaves History --------- Turn | Location | Event 3 | -11/Scrapyard | Discovered new exit (range 16) 49 | -11/Scrapyard | Entered Materials 242 | -10/Materials | Discovered new exit (range 6) 305 | -10/Materials | Build established: Mutant 316 | -10/Materials | Discovered new exit (range 12) 329 | -10/Materials | Entered Subcaves 330 | -10/Subcaves | Approached by a straggling Scientist 364 | -10/Subcaves | Shifting Twisted Machinery released Piercing Trap 565 | -10/Subcaves | Lost 4 parts (4w) 627 | -10/Subcaves | Core integrity fell below 50% 776 | -10/Subcaves | Shifting Twisted Machinery released Sub. Machine Gun 778 | -10/Subcaves | Shifting Twisted Machinery released Sub. Laser 885 | -10/Subcaves | Visited 4L-MR0's lab 927 | -10/Subcaves | Core integrity fell below 20% 934 | -10/Subcaves | Destroyed by VA-RNR(R) with Subdweller Machine Gun Last Messages --------------- was up to and wanted something even better. I tried to convince them it was a bad idea and that not just anyone can do what VL-GR5 can, but they didn't take that well and almost shot me then and there. Sub. Laser shoots sparks and powers down. Dropped Broken Sub. Laser. 4L-MR0 mumbles to no one in particular: "Damn Subs sneaking around stealing my stuff." VA-RNR(R): "LEAVESUB!" 4L-MR0 mumbles: "I'm surprised some of them are even willing to come in here given their fear of my usual visitors." 4L-MR0 mumbles: "Who knows where that last prototype ended up, probably tossed aside somewhere as if it were useless junk..." Machine disabled. 4L-MR0 cries out in pain. 4L-MR0 destroyed. Acquired 16 matter. Map ----- +----------------------------------------------------+ | ?????????????????????????????? | | ?????????????????????????????? | | ?????????????????????????????? | | ?????????????????????????????? | | ?????????????????????????????? | | ???????????????????##????????? | | ??????????????????? #???????? | | ??????????????????? ???????? | | ??????????????????? ???????? | | ???????????????????# #??????? | | ???????????????????# ??????? | | ???????????????????# ??????? | | ???????????????????# #??????? | | ???????????????????# ######?? | | ???????????????????# # #?? | | ???????????????????# ##? | | ??????????????????## #? | | ????????????????### #? | | ???????????????## ## | | ???????????????# # | | ????######?????## | | ????#=#""#?????## | | ????#"#""#?????# ## | | ????#[ ""#?#####" # ####### # | | ????# X"#?# # " # #??????## | | ????#@ "#?# #???????? | | ????#"* "#?# #???????? | | ????#" |"#?# #" ##???????? | | ????###R##### ## #????????? | | ????## #" # ####?????? | | ???#""""< "" ## #?????? | | ???#" ""<< " ## #?????? | | ???#" " "<<<" ### ## #?????? | | ???##"""" "<#### ####?????? | | ????#########?# #???????? | | ??????????????## #???????? | | ???????????????## #???????? | | ????????????????## #??????## | | ?????????????????# ######## | | ?????????????????## ## # | | ??????????????????# | | ??????????????????# " | | ??????????????????# "" | | ?????????????????## "" | | ?????????????????# & "" | | ????????????????## ######" # | | ????????????????# !###?## # | | ????????????????# ### # | | ????????????????## ## | | ?????????????????### ### #? | +----------------------------------------------------+ Best States ------------- Heat Dissipation 25 Energy Generation 5 Energy Capacity 100 Matter Stores 284 Matter Capacity 300 Sight Range 16 Terrain Scan Density 10 Evasion (%) 55 Item Schematics ----------------- None Robot Schematics ------------------ None Fabricated ------------ Nothing Repaired ---------- Nothing Studied --------- None Alien Tech Used ----------------- None Achievements -------------- None Challenges ------------ None Game ------ Seed SixHeatDatajack Manual? 0 Play Time 00:07:42 Cumulative 200.8 hours Start 2025.10.31 @ 06:06:20 End 2025.10.31 @ 06:13:10 Sessions 1 Manual Loads 0 Difficulty Rogue Special Mode None Game No. 589 Rogue 588 Adventurer 1 Explorer 0 Win Type - Total 0 Types 0/0/0/0/0/0/0/0/0/0 Lore% 64 Gallery% 60 Achievement% 34 Wizard Run 0 Options --------- Layout 1 ASCII 0 Keyboard 0 Movement Mouse Keybinds 0 Fullscreen 1 Font 24/Smallcaps Map View 50x35 Zoom Use 0% Tactical HUD 0 Map Filters NONE Filters NONE Steam 1 RUN: 802a958e-0317-4f63-9b22-bb26c28124ce